[Event "DVM U14 2024"]
[Site "Heidelberg"]
[Date "2024.12.28"]
[Round "3"]
[White "Botschek, Marius"]
[Black "Mueller, Maximilian"]
[Result "1-0"]
[ECO "B17"]
[WhiteElo "1788"]
[BlackElo "1679"]
[Annotator "NA RC"]
[PlyCount "91"]
[EventDate "2024.12.23"]
[EventType "team-tourn"]
[EventRounds "7"]
[EventCountry "GER"]
[SourceTitle "playchess.com"]
[Source "ChessBase"]
[SourceQuality "1"]
[TimeControl "40/5400+30:1800+30"]

1. e4 {[%emt 0:00:01]} c6 {[%emt 0:00:08]} 2. Nc3 {[%emt 0:00:11]} d5 {[%emt 0:00:09]} 3. Nf3 {[%emt 0:00:05]} dxe4 {[%emt 0:00:30]} 4. Nxe4 {[%emt 0:00:02]} Bg4 {[%emt 0:00:50]} 5. h3 {[%emt 0:00:12]} Bxf3 {[%emt 0:00:55]} 6. Qxf3 {[%emt 0:00:09]} e6 {[%emt 0:00:19]} 7. c3 {[%emt 0:01:02]} Nd7 {[%emt 0:01:31]} 8. d4 {[%emt 0:01:05]} Ngf6 {[%emt 0:00:14]} 9. Nxf6+ {[%emt 0:10:14]} Nxf6 {[%emt 0:04:30]} 10. Bd3 {[%emt 0:01:12]} Be7 {[%emt 0:03:06]} 11. O-O {[%emt 0:00:57]} O-O {[%emt 0:01:49]} 12. Bf4 {[%emt 0:02:15]} Qb6 {[%emt 0:13:01]} 13. Rab1 {[%emt 0:03:22]} Rad8 {[%emt 0:14:25]} 14. Rfd1 {[%emt 0:07:13]} Nd5 {[%emt 0:06:20]} 15. Qe4 {[%emt 0:06:08]} Nf6 {[%emt 0:00:19]} 16. Qf3 {[%emt 0:00:45]} Nd5 {[%emt 0:00:13]} 17. Qe4 {[%emt 0:19:38]} Nf6 {[%emt 0:00:08]} 18. Qe2 {[%emt 0:00:54]} Rd7 {[%emt 0:09:53]} 19. b4 {[%emt 0:11:40]} Nd5 {[%emt 0:08:31]} 20. Bd2 {[%emt 0:01:07]} Qd8 {[%emt 0:03:25]} 21. a4 {[%emt 0:08:37]} Re8 {[%emt 0:07:16]} 22. Bc2 {[%emt 0:07:23]} Bd6 {[%emt 0:05:48]} 23. b5 {[%emt 0:02:36]} c5 {[%emt 0:05:21]} 24. dxc5 {[%emt 0:01:21]} Bxc5 {[%emt 0:00:02]} 25. c4 {[%emt 0:00:34]} Nf6 {[%emt 0:03:39]} 26. Be3 {[%emt 0:00:20]} Qc7 {[%emt 0:02:10]} 27. Bxc5 {[%emt 0:04:23]} Rxd1+ {[%emt 0:00:52]} 28. Rxd1 {[%emt 0:00:01]} Qxc5 {[%emt 0:00:03]} 29. Qd3 {[%emt 0:01:59]} g6 {[%emt 0:02:56]} 30. Qd4 {[%emt 0:01:52]} Qxd4 {[%emt 0:00:36]} 31. Rxd4 {[%emt 0:00:01]} Rc8 {[%emt 0:00:03]} 32. a5 {[%emt 0:00:48]} Kf8 {[%emt 0:01:41]} 33. Bb3 {[%emt 0:00:09]} Ke7 {[%emt 0:00:14]} 34. Kf1 {[%emt 0:04:39]} Rc5 {[%emt 0:01:42]} 35. Rd1 {[%emt 0:02:50]} Ne8 {[%emt 0:02:30]} 36. Ke2 {[%emt 0:00:33]} e5 {[%emt 0:01:56]} 37. Kd3 {[%emt 0:00:15]} f5 {[%emt 0:00:07]} 38. Kc3 {[%emt 0:00:17]} Nd6 {[%emt 0:00:32]} 39. Kb4 {[%emt 0:00:40]} Rc8 {[%emt 0:00:08]} 40. Rd5 {[%emt 0:01:00]} e4 {[%emt 0:01:41]} 41. c5 {[%emt 0:31:11]} Nf7 {[%emt 0:02:45]} 42. Bc4 {[%emt 0:00:00]} Rd8 {[%emt 0:06:23]} 43. Rxd8 {[%emt 0:00:00]} Nxd8 {[%emt 0:00:08]} 44. Bd5 {[%emt 0:00:00]} g5 {[%emt 0:01:52]} 45. Kc4 {[%emt 0:00:00]} h5 {[%emt 0:00:43]} 46. Kd4 {[%emt 0:00:00]} 1-0

[Event "DVM U14 2024"]
[Site "Heidelberg"]
[Date "2024.12.28"]
[Round "3"]
[White "Meijers, Janis"]
[Black "Mandalka, Justus"]
[Result "0-1"]
[ECO "D40"]
[WhiteElo "1783"]
[BlackElo "2059"]
[Annotator "NA RC"]
[PlyCount "96"]
[EventDate "2024.12.23"]
[EventType "team-tourn"]
[EventRounds "7"]
[EventCountry "GER"]
[SourceTitle "playchess.com"]
[Source "ChessBase"]
[SourceQuality "1"]
[TimeControl "40/5400+30:1800+30"]

1. d4 {[%emt 0:00:06]} d5 {[%emt 0:00:08]} 2. c4 {[%emt 0:00:10]} e6 {[%emt 0:00:07]} 3. Nc3 {[%emt 0:00:07]} c5 {[%emt 0:00:05]} 4. e3 {[%emt 0:00:20]} Nf6 {[%emt 0:00:13]} 5. Nf3 {[%emt 0:00:17]} Nc6 {[%emt 0:00:14]} 6. a3 {[%emt 0:00:12]} a6 {[%emt 0:00:16]} 7. dxc5 {[%emt 0:00:28]} Bxc5 {[%emt 0:00:18]} 8. b4 {[%emt 0:01:59]} Ba7 {[%emt 0:00:47]} 9. Bb2 {[%emt 0:02:36]} O-O {[%emt 0:00:21]} 10. cxd5 {[%emt 0:03:36]} exd5 {[%emt 0:00:23]} 11. Bd3 {[%emt 0:09:19]} d4 {[%emt 0:06:10]} 12. exd4 {[%emt 0:00:18]} Re8+ {[%emt 0:00:11]} 13. Ne2 {[%emt 0:00:30]} Bg4 {[%emt 0:01:49]} 14. O-O {[%emt 0:01:29]} Bxf3 {[%emt 0:01:16]} 15. gxf3 {[%emt 0:00:38]} Qd5 {[%emt 0:01:57]} 16. Nc3 {[%emt 0:10:53]} Qh5 {[%emt 0:04:13]} 17. Ne4 {[%emt 0:03:43]} Rxe4 {[%emt 0:01:01]} 18. Bxe4 {[%emt 0:06:19]} Bb8 {[%emt 0:00:12]} 19. Re1 {[%emt 0:00:07]} Bxh2+ {[%emt 0:00:28]} 20. Kg2 {[%emt 0:02:21]} Bf4 {[%emt 0:02:02]} 21. Rh1 {[%emt 0:02:02]} Qg5+ {[%emt 0:00:18]} 22. Kf1 {[%emt 0:00:23]} h5 {[%emt 0:15:56]} 23. Bc1 {[%emt 0:03:46]} Rd8 {[%emt 0:05:16]} 24. Bxf4 {[%emt 0:02:37]} Qxf4 {[%emt 0:00:06]} 25. Qc1 {[%emt 0:00:16]} Qd6 {[%emt 0:10:22]} 26. Bxc6 {[%emt 0:08:32]} bxc6 {[%emt 0:00:10]} 27. Rh4 {[%emt 0:00:25]} Qd5 {[%emt 0:07:09]} 28. Qc3 {[%emt 0:03:36]} Qb5+ {[%emt 0:00:23]} 29. Kg2 {[%emt 0:04:06]} Qg5+ {[%emt 0:02:05]} 30. Kh3 {[%emt 0:00:10]} Nd5 {[%emt 0:07:38]} 31. Qc1 {[%emt 0:01:00]} Qf5+ {[%emt 0:00:38]} 32. Kg2 {[%emt 0:06:37]} Rd6 {[%emt 0:00:23]} 33. Qh1 {[%emt 0:09:28]} Rg6+ {[%emt 0:01:52]} 34. Kh2 {[%emt 0:00:23]} Qf6 {[%emt 0:02:02]} 35. Rh3 {[%emt 0:07:36]} Qd6+ {[%emt 0:00:36]} 36. Rg3 {[%emt 0:02:02]} h4 {[%emt 0:00:05]} 37. Qe1 {[%emt 0:00:49]} hxg3+ {[%emt 0:00:26]} 38. fxg3 {[%emt 0:00:07]} Ne3 {[%emt 0:00:42]} 39. Rc1 {[%emt 0:01:21]} Rh6+ {[%emt 0:00:33]} 40. Kg1 {[%emt 0:00:12]} Qxd4 {[%emt 0:00:10]} 41. Qf2 {[%emt 0:30:16]} Nf5 {[%emt 0:30:38]} 42. Qxd4 {[%emt 0:00:22]} Nxd4 {[%emt 0:00:02]} 43. Kg2 {[%emt 0:00:14]} Re6 {[%emt 0:00:20]} 44. Rc4 {[%emt 0:00:20]} Re2+ {[%emt 0:00:24]} 45. Kf1 {[%emt 0:00:11]} Rd2 {[%emt 0:00:03]} 46. Rc3 {[%emt 0:00:26]} g6 {[%emt 0:00:46]} 47. g4 {[%emt 0:00:26]} Ra2 {[%emt 0:00:12]} 48. Kg1 {[%emt 0:00:40]} Ne2+ {[%emt 0:00:06]} 0-1

[Event "DVM U14 2024"]
[Site "Heidelberg"]
[Date "2024.12.28"]
[Round "3"]
[White "Ramming, Moritz"]
[Black "Geschke, David"]
[Result "1-0"]
[ECO "C56"]
[WhiteElo "1769"]
[BlackElo "1831"]
[Annotator "NA RC"]
[PlyCount "111"]
[EventDate "2024.12.23"]
[EventType "team-tourn"]
[EventRounds "7"]
[EventCountry "GER"]
[SourceTitle "playchess.com"]
[Source "ChessBase"]
[SourceQuality "1"]
[TimeControl "40/5400+30:1800+30"]

1. e4 {[%emt 0:00:08]} e5 {[%emt 0:00:06]} 2. Nf3 {[%emt 0:00:04]} Nc6 {[%emt 0:00:05]} 3. d4 {[%emt 0:00:04]} exd4 {[%emt 0:00:12]} 4. Bc4 {[%emt 0:00:05]} Nf6 {[%emt 0:00:07]} 5. e5 {[%emt 0:00:05]} d5 {[%emt 0:00:08]} 6. Bb5 {[%emt 0:00:05]} Ne4 {[%emt 0:00:12]} 7. Nxd4 {[%emt 0:00:04]} Bd7 {[%emt 0:00:12]} 8. Bxc6 {[%emt 0:00:04]} bxc6 {[%emt 0:00:42]} 9. O-O {[%emt 0:00:08]} Bc5 {[%emt 0:01:02]} 10. f3 {[%emt 0:00:15]} Ng5 {[%emt 0:00:08]} 11. Be3 {[%emt 0:00:14]} O-O {[%emt 0:07:49]} 12. f4 {[%emt 0:02:32]} Ne4 {[%emt 0:02:58]} 13. Nd2 {[%emt 0:00:15]} Nxd2 {[%emt 0:00:39]} 14. Qxd2 {[%emt 0:00:21]} Bb6 {[%emt 0:01:18]} 15. Nb3 {[%emt 0:02:30]} Qe7 {[%emt 0:04:12]} 16. Qf2 {[%emt 0:02:39]} f6 {[%emt 0:02:11]} 17. Bc5 {[%emt 0:03:46]} Bxc5 {[%emt 0:04:05]} 18. Qxc5 {[%emt 0:00:54]} Qxc5+ {[%emt 0:03:46]} 19. Nxc5 {[%emt 0:00:09]} Bf5 {[%emt 0:00:18]} 20. e6 {[%emt 0:01:49]} Rfe8 {[%emt 0:02:39]} 21. Rfe1 {[%emt 0:00:55]} Rab8 {[%emt 0:02:45]} 22. Rab1 {[%emt 0:04:41]} Bxc2 {[%emt 0:10:54]} 23. Rbc1 {[%emt 0:02:32]} Bf5 {[%emt 0:00:50]} 24. Na6 {[%emt 0:04:37]} Rxb2 {[%emt 0:10:44]} 25. Nxc7 {[%emt 0:02:37]} Re7 {[%emt 0:00:47]} 26. Nxd5 {[%emt 0:00:24]} Rxe6 {[%emt 0:00:13]} 27. Ne7+ {[%emt 0:00:22]} Kf7 {[%emt 0:03:37]} 28. Nxf5 {[%emt 0:00:08]} Rxa2 {[%emt 0:00:54]} 29. Rxe6 {[%emt 0:00:44]} Kxe6 {[%emt 0:00:07]} 30. Nd4+ {[%emt 0:00:10]} Kd5 {[%emt 0:00:36]} 31. Nxc6 {[%emt 0:00:13]} a5 {[%emt 0:00:25]} 32. Na7 {[%emt 0:02:19]} Ke4 {[%emt 0:01:27]} 33. g3 {[%emt 0:00:46]} Kd3 {[%emt 0:01:32]} 34. Nc6 {[%emt 0:01:50]} Kd2 {[%emt 0:02:10]} 35. Rc5 {[%emt 0:09:54]} a4 {[%emt 0:00:19]} 36. Nd4 {[%emt 0:08:55]} a3 {[%emt 0:05:35]} 37. Nb5 {[%emt 0:01:56]} Ra1+ {[%emt 0:00:49]} 38. Kg2 {[%emt 0:00:46]} a2 {[%emt 0:01:32]} 39. Nd4 {[%emt 0:00:56]} Rg1+ {[%emt 0:00:33]} 40. Kh3 {[%emt 0:00:14]} a1=Q {[%emt 0:02:49]} 41. Nb3+ {[%emt 0:30:10]} Ke3 {[%emt 0:30:57]} 42. Nxa1 {[%emt 0:00:08]} Rxa1 {[%emt 0:00:10]} 43. Rc7 {[%emt 0:00:11]} g6 {[%emt 0:27:39]} 44. Rxh7 {[%emt 0:01:06]} Ke4 {[%emt 0:00:00]} 45. Kg4 {[%emt 0:00:00]} Ra5 {[%emt 0:00:00]} 46. Re7+ {[%emt 0:00:00]} Kd5 {[%emt 0:00:00]} 47. Rg7 {[%emt 0:00:00]} Ke6 {[%emt 0:00:00]} 48. Rxg6 {[%emt 0:00:00]} Kf7 {[%emt 0:00:00]} 49. Rh6 {[%emt 0:00:00]} Kg7 {[%emt 0:00:00]} 50. Rh5 {[%emt 0:00:00]} Ra4 {[%emt 0:00:00]} 51. Rc5 {[%emt 0:00:00]} Kg6 {[%emt 0:00:00]} 52. h4 {[%emt 0:00:00]} Ra6 {[%emt 0:00:00]} 53. h5+ {[%emt 0:00:00]} Kh6 {[%emt 0:00:00]} 54. Rc7 {[%emt 0:00:00]} Rb6 {[%emt 0:00:00]} 55. Rf7 {[%emt 0:00:00]} Re6 {[%emt 0:00:00]} 56. Kf5 {[%emt 0:00:00]} 1-0

[Event "DVM U14 2024"]
[Site "Heidelberg"]
[Date "2024.12.28"]
[Round "3"]
[White "Kommessin, Felix"]
[Black "Hempel, Lorenz"]
[Result "0-1"]
[ECO "B21"]
[WhiteElo "1757"]
[BlackElo "1960"]
[Annotator "NA RC"]
[PlyCount "68"]
[EventDate "2024.12.23"]
[EventType "team-tourn"]
[EventRounds "7"]
[EventCountry "GER"]
[SourceTitle "playchess.com"]
[Source "ChessBase"]
[SourceQuality "1"]
[TimeControl "40/5400+30:1800+30"]

1. e4 {[%emt 0:00:02]} c5 {[%emt 0:00:04]} 2. d4 {[%emt 0:00:05]} cxd4 {[%emt 0:00:04]} 3. c3 {[%emt 0:00:04]} dxc3 {[%emt 0:00:05]} 4. Nxc3 {[%emt 0:00:05]} Nc6 {[%emt 0:00:08]} 5. Nf3 {[%emt 0:00:07]} e6 {[%emt 0:00:09]} 6. Bc4 {[%emt 0:00:16]} a6 {[%emt 0:00:09]} 7. O-O {[%emt 0:01:30]} b5 {[%emt 0:00:14]} 8. Bd3 {[%emt 0:01:11]} Bb7 {[%emt 0:04:00]} 9. Qe2 {[%emt 0:00:35]} Rc8 {[%emt 0:02:15]} 10. Bg5 {[%emt 0:08:52]} Be7 {[%emt 0:05:42]} 11. Bf4 {[%emt 0:05:17]} Nb4 {[%emt 0:08:07]} 12. Bb1 {[%emt 0:06:27]} d6 {[%emt 0:01:53]} 13. Rd1 {[%emt 0:27:14]} Qc7 {[%emt 0:04:49]} 14. a3 {[%emt 0:04:07]} Nc6 {[%emt 0:00:12]} 15. Ba2 {[%emt 0:02:09]} Nf6 {[%emt 0:02:02]} 16. Rac1 {[%emt 0:01:57]} O-O {[%emt 0:03:12]} 17. Nd5 {[%emt 0:05:41]} exd5 {[%emt 0:14:24]} 18. exd5 {[%emt 0:00:12]} Nxd5 {[%emt 0:00:42]} 19. Bxd5 {[%emt 0:01:48]} Qd7 {[%emt 0:01:12]} 20. Bxc6 {[%emt 0:04:38]} Rxc6 {[%emt 0:02:09]} 21. Ne5 {[%emt 0:04:47]} Qe6 {[%emt 0:01:27]} 22. Nxc6 {[%emt 0:07:43]} Qxe2 {[%emt 0:00:08]} 23. Re1 {[%emt 0:00:04]} Qxe1+ {[%emt 0:02:28]} 24. Rxe1 {[%emt 0:00:11]} Bf6 {[%emt 0:00:08]} 25. Bxd6 {[%emt 0:08:31]} Bxc6 {[%emt 0:01:03]} 26. Bxf8 {[%emt 0:00:06]} Kxf8 {[%emt 0:00:05]} 27. Rc1 {[%emt 0:00:05]} Bd5 {[%emt 0:00:58]} 28. Rd1 {[%emt 0:02:03]} Bb3 {[%emt 0:02:37]} 29. Rd3 {[%emt 0:00:51]} Bc4 {[%emt 0:00:36]} 30. Rd6 {[%emt 0:01:25]} Bxb2 {[%emt 0:00:59]} 31. Rxa6 {[%emt 0:00:06]} Bb3 {[%emt 0:00:14]} 32. Rd6 {[%emt 0:01:31]} Ke7 {[%emt 0:01:47]} 33. Rd3 {[%emt 0:00:27]} Bc4 {[%emt 0:00:31]} 34. Re3+ {[%emt 0:01:45]} Kd6 {[%emt 0:00:20]} 0-1

[Event "DVM U14 2024"]
[Site "Heidelberg"]
[Date "2024.12.28"]
[Round "3"]
[White "Muller, Anker"]
[Black "Steinbrenner, Peter"]
[Result "1-0"]
[ECO "B40"]
[WhiteElo "1744"]
[BlackElo "1946"]
[Annotator "NA RC"]
[PlyCount "109"]
[EventDate "2024.12.23"]
[EventType "team-tourn"]
[EventRounds "7"]
[EventCountry "GER"]
[SourceTitle "playchess.com"]
[Source "ChessBase"]
[SourceQuality "1"]
[TimeControl "40/5400+30:1800+30"]

1. e4 {[%emt 0:00:04]} c5 {[%emt 0:00:09]} 2. b3 {[%emt 0:00:17]} Nc6 {[%emt 0:00:33]} 3. Bb2 {[%emt 0:00:19]} e6 {[%emt 0:03:07]} 4. Nf3 {[%emt 0:02:11]} d5 {[%emt 0:04:51]} 5. exd5 {[%emt 0:00:08]} exd5 {[%emt 0:00:10]} 6. Bb5 {[%emt 0:00:08]} Nf6 {[%emt 0:05:00]} 7. Qe2+ {[%emt 0:07:09]} Be6 {[%emt 0:12:17]} 8. O-O {[%emt 0:12:03]} Bd6 {[%emt 0:05:40]} 9. d4 {[%emt 0:13:41]} O-O {[%emt 0:04:14]} 10. dxc5 {[%emt 0:05:26]} Bxc5 {[%emt 0:00:31]} 11. Nc3 {[%emt 0:03:46]} Bg4 {[%emt 0:06:55]} 12. Bxc6 {[%emt 0:04:07]} bxc6 {[%emt 0:00:21]} 13. Qd3 {[%emt 0:01:16]} Re8 {[%emt 0:07:32]} 14. Na4 {[%emt 0:04:44]} Bd6 {[%emt 0:03:53]} 15. Rfe1 {[%emt 0:02:54]} Ne4 {[%emt 0:06:35]} 16. Qd4 {[%emt 0:13:08]} f6 {[%emt 0:03:32]} 17. Qd3 {[%emt 0:02:04]} Kh8 {[%emt 0:07:13]} 18. Nd4 {[%emt 0:02:00]} Qc7 {[%emt 0:04:08]} 19. g3 {[%emt 0:06:28]} Ng5 {[%emt 0:12:03]} 20. h4 {[%emt 0:06:38]} Nf7 {[%emt 0:00:00]} 21. Qc3 {[%emt 0:01:34]} Bd7 {[%emt 0:00:00]} 22. Nc5 {[%emt 0:00:55]} Be5 {[%emt 0:02:48]} 23. Qd3 {[%emt 0:02:43]} Nd6 {[%emt 0:04:07]} 24. c3 {[%emt 0:02:07]} Nb7 {[%emt 0:01:34]} 25. Nxd7 {[%emt 0:01:15]} Qxd7 {[%emt 0:00:13]} 26. Qa6 {[%emt 0:02:13]} Nc5 {[%emt 0:01:09]} 27. Qxc6 {[%emt 0:01:51]} Qxc6 {[%emt 0:00:04]} 28. Nxc6 {[%emt 0:00:05]} Nd3 {[%emt 0:00:05]} 29. Re2 {[%emt 0:01:11]} Bxg3 {[%emt 0:02:07]} 30. Rxe8+ {[%emt 0:01:02]} Rxe8 {[%emt 0:00:06]} 31. fxg3 {[%emt 0:00:11]} Nxb2 {[%emt 0:00:03]} 32. Nb4 {[%emt 0:00:24]} Re3 {[%emt 0:02:52]} 33. Nxd5 {[%emt 0:00:58]} Rxg3+ {[%emt 0:00:56]} 34. Kf2 {[%emt 0:00:13]} Rh3 {[%emt 0:00:50]} 35. Nb4 {[%emt 0:01:39]} Nd3+ {[%emt 0:01:25]} 36. Nxd3 {[%emt 0:00:45]} Rxd3 {[%emt 0:00:04]} 37. c4 {[%emt 0:00:14]} g5 {[%emt 0:00:32]} 38. hxg5 {[%emt 0:00:19]} fxg5 {[%emt 0:00:05]} 39. Ke2 {[%emt 0:00:37]} Rd8 {[%emt 0:00:39]} 40. Kf3 {[%emt 0:01:00]} Kg7 {[%emt 0:00:35]} 41. Re1 {[%emt 0:02:48]} Kf6 {[%emt 0:00:37]} 42. c5 {[%emt 0:08:31]} h5 {[%emt 0:02:39]} 43. Re3 {[%emt 0:03:02]} g4+ {[%emt 0:11:55]} 44. Kf4 {[%emt 0:01:46]} Rd4+ {[%emt 0:01:11]} 45. Kg3 {[%emt 0:00:12]} Rd5 {[%emt 0:01:03]} 46. Rc3 {[%emt 0:00:41]} Kg5 {[%emt 0:01:17]} 47. c6 {[%emt 0:04:05]} h4+ {[%emt 0:00:31]} 48. Kg2 {[%emt 0:00:27]} Rd8 {[%emt 0:06:04]} 49. b4 {[%emt 0:03:20]} Rd2+ {[%emt 0:02:22]} 50. Kg1 {[%emt 0:00:27]} Rd1+ {[%emt 0:00:43]} 51. Kf2 {[%emt 0:00:33]} g3+ {[%emt 0:01:53]} 52. Kf3 {[%emt 0:05:51]} Rd2 {[%emt 0:03:28]} 53. c7 {[%emt 0:00:56]} g2 {[%emt 0:00:30]} 54. c8=Q {[%emt 0:01:12]} g1=Q {[%emt 0:00:16]} 55. Qg8+ {[%emt 0:00:14]} 1-0

[Event "DVM U14 2024"]
[Site "Heidelberg"]
[Date "2024.12.28"]
[Round "3"]
[White "Dersewski, Jonas"]
[Black "Zielke, Constantin"]
[Result "0-1"]
[ECO "C54"]
[WhiteElo "1738"]
[BlackElo "1543"]
[Annotator "NA RC"]
[PlyCount "90"]
[EventDate "2024.12.23"]
[EventType "team-tourn"]
[EventRounds "7"]
[EventCountry "GER"]
[SourceTitle "playchess.com"]
[Source "ChessBase"]
[SourceQuality "1"]
[TimeControl "40/5400+30:1800+30"]

1. e4 {[%emt 0:00:04]} e5 {[%emt 0:00:06]} 2. Nf3 {[%emt 0:00:04]} Nc6 {[%emt 0:00:04]} 3. Bc4 {[%emt 0:00:37]} Bc5 {[%emt 0:00:11]} 4. c3 {[%emt 0:00:10]} Nf6 {[%emt 0:00:20]} 5. d3 {[%emt 0:00:08]} d6 {[%emt 0:00:35]} 6. a4 {[%emt 0:01:09]} a5 {[%emt 0:00:27]} 7. O-O {[%emt 0:00:56]} Bg4 {[%emt 0:01:50]} 8. Be3 {[%emt 0:01:10]} Bxe3 {[%emt 0:02:15]} 9. fxe3 {[%emt 0:00:09]} O-O {[%emt 0:00:27]} 10. h3 {[%emt 0:02:26]} Bh5 {[%emt 0:01:00]} 11. g4 {[%emt 0:02:27]} Bg6 {[%emt 0:00:17]} 12. Nbd2 {[%emt 0:04:20]} d5 {[%emt 0:01:24]} 13. exd5 {[%emt 0:02:12]} Nxd5 {[%emt 0:00:11]} 14. Qe2 {[%emt 0:02:37]} Nb6 {[%emt 0:00:53]} 15. e4 {[%emt 0:06:18]} Nxc4 {[%emt 0:11:11]} 16. Nxc4 {[%emt 0:00:04]} Re8 {[%emt 0:00:27]} 17. Rad1 {[%emt 0:06:22]} Qd7 {[%emt 0:01:26]} 18. Ne3 {[%emt 0:04:44]} Nd8 {[%emt 0:02:11]} 19. Nc4 {[%emt 0:10:41]} f6 {[%emt 0:04:55]} 20. Qc2 {[%emt 0:06:25]} Qc6 {[%emt 0:01:35]} 21. Ne3 {[%emt 0:03:07]} Ne6 {[%emt 0:01:01]} 22. Ng2 {[%emt 0:05:37]} Rad8 {[%emt 0:02:40]} 23. Nfh4 {[%emt 0:02:28]} Bf7 {[%emt 0:00:43]} 24. Nf5 {[%emt 0:05:00]} Ng5 {[%emt 0:03:05]} 25. Kh2 {[%emt 0:03:52]} Qb6 {[%emt 0:01:12]} 26. Qe2 {[%emt 0:00:53]} Bb3 {[%emt 0:00:37]} 27. Ra1 {[%emt 0:04:09]} Qc6 {[%emt 0:00:45]} 28. Ra3 {[%emt 0:00:52]} Bxa4 {[%emt 0:00:38]} 29. Rfa1 {[%emt 0:00:45]} Bb5 {[%emt 0:01:20]} 30. c4 {[%emt 0:01:02]} Ba6 {[%emt 0:00:07]} 31. Rxa5 {[%emt 0:00:25]} Ne6 {[%emt 0:10:36]} 32. b4 {[%emt 0:04:21]} g6 {[%emt 0:00:54]} 33. b5 {[%emt 0:02:35]} Bxb5 {[%emt 0:01:11]} 34. cxb5 {[%emt 0:00:20]} Qc3 {[%emt 0:00:54]} 35. R1a3 {[%emt 0:02:23]} Qb4 {[%emt 0:01:31]} 36. Nfe3 {[%emt 0:02:07]} Nd4 {[%emt 0:00:28]} 37. Qa2+ {[%emt 0:00:14]} Kh8 {[%emt 0:00:18]} 38. Nd5 {[%emt 0:01:08]} Qd6 {[%emt 0:06:49]} 39. Qc4 {[%emt 0:05:34]} Rc8 {[%emt 0:02:41]} 40. Ra2 {[%emt 0:03:25]} f5 {[%emt 0:02:14]} 41. gxf5 {[%emt 0:37:03]} gxf5 {[%emt 0:30:12]} 42. Rf2 {[%emt 0:00:00]} Rg8 {[%emt 0:00:00]} 43. Nge3 {[%emt 0:00:00]} Qg6 {[%emt 0:00:00]} 44. Ng2 {[%emt 0:00:00]} Nf3+ {[%emt 0:00:00]} 45. Kh1 {[%emt 0:00:00]} Qg3 {[%emt 0:00:00]} 0-1

[Event "DVM U14 2024"]
[Site "Heidelberg"]
[Date "2024.12.28"]
[Round "3"]
[White "Gorbatschow, Bogdan"]
[Black "Scharff, Oskar"]
[Result "1/2-1/2"]
[ECO "C56"]
[WhiteElo "1728"]
[BlackElo "1583"]
[Annotator "NA RC"]
[PlyCount "78"]
[EventDate "2024.12.23"]
[EventType "team-tourn"]
[EventRounds "7"]
[EventCountry "GER"]
[SourceTitle "playchess.com"]
[Source "ChessBase"]
[SourceQuality "1"]
[TimeControl "40/5400+30:1800+30"]

1. e4 {[%emt 0:00:04]} e5 {[%emt 0:00:08]} 2. Nf3 {[%emt 0:00:19]} Nc6 {[%emt 0:00:12]} 3. d4 {[%emt 0:00:10]} exd4 {[%emt 0:00:05]} 4. Bc4 {[%emt 0:00:05]} Nf6 {[%emt 0:00:29]} 5. Ng5 {[%emt 0:00:46]} Ne5 {[%emt 0:00:43]} 6. Qxd4 {[%emt 0:00:39]} Qe7 {[%emt 0:02:02]} 7. Nc3 {[%emt 0:10:35]} Qc5 {[%emt 0:04:07]} 8. Qxc5 {[%emt 0:06:28]} Bxc5 {[%emt 0:00:08]} 9. Bb3 {[%emt 0:00:16]} h6 {[%emt 0:05:34]} 10. Nf3 {[%emt 0:13:26]} Nxf3+ {[%emt 0:00:17]} 11. gxf3 {[%emt 0:00:08]} d6 {[%emt 0:02:30]} 12. Rg1 {[%emt 0:01:48]} g6 {[%emt 0:12:57]} 13. Be3 {[%emt 0:06:29]} Bxe3 {[%emt 0:07:22]} 14. fxe3 {[%emt 0:00:06]} Ke7 {[%emt 0:03:54]} 15. Nb5 {[%emt 0:08:16]} c6 {[%emt 0:02:59]} 16. Nd4 {[%emt 0:01:20]} Nd7 {[%emt 0:03:13]} 17. a3 {[%emt 0:01:59]} Ne5 {[%emt 0:05:23]} 18. Rg3 {[%emt 0:02:28]} Rg8 {[%emt 0:11:52]} 19. O-O-O {[%emt 0:02:55]} h5 {[%emt 0:03:17]} 20. h4 {[%emt 0:02:36]} Bd7 {[%emt 0:04:05]} 21. Rf1 {[%emt 0:04:07]} Be6 {[%emt 0:21:44]} 22. Bxe6 {[%emt 0:01:17]} fxe6 {[%emt 0:00:10]} 23. Ne2 {[%emt 0:03:47]} Raf8 {[%emt 0:02:11]} 24. Ng1 {[%emt 0:02:22]} Ng4 {[%emt 0:02:09]} 25. Re1 {[%emt 0:02:41]} Ne5 {[%emt 0:00:13]} 26. Rf1 {[%emt 0:07:13]} Ng4 {[%emt 0:00:39]} 27. Kd2 {[%emt 0:02:01]} Rf6 {[%emt 0:01:36]} 28. Nh3 {[%emt 0:01:16]} Rgf8 {[%emt 0:02:25]} 29. Ke2 {[%emt 0:03:23]} Ne5 {[%emt 0:01:40]} 30. b3 {[%emt 0:00:14]} Nf7 {[%emt 0:00:48]} 31. Nf4 {[%emt 0:02:31]} Ne5 {[%emt 0:00:22]} 32. Rfg1 {[%emt 0:02:17]} Kf7 {[%emt 0:00:43]} 33. Nh3 {[%emt 0:02:08]} Kg7 {[%emt 0:00:31]} 34. Ng5 {[%emt 0:01:42]} Nf7 {[%emt 0:00:17]} 35. Nxf7 {[%emt 0:01:03]} R8xf7 {[%emt 0:00:08]} 36. f4 {[%emt 0:00:08]} Kh7 {[%emt 0:00:25]} 37. c4 {[%emt 0:02:40]} e5 {[%emt 0:00:25]} 38. fxe5 {[%emt 0:01:28]} dxe5 {[%emt 0:00:34]} 39. R1g2 {[%emt 0:01:21]} Re7 {[%emt 0:01:10]} 1/2-1/2

[Event "DVM U14 2024"]
[Site "Heidelberg"]
[Date "2024.12.28"]
[Round "3"]
[White "Ensslen, Jakob"]
[Black "Faerber, Anna"]
[Result "1/2-1/2"]
[ECO "C01"]
[WhiteElo "1714"]
[BlackElo "1698"]
[Annotator "NA RC"]
[PlyCount "52"]
[EventDate "2024.12.23"]
[EventType "team-tourn"]
[EventRounds "7"]
[EventCountry "GER"]
[SourceTitle "playchess.com"]
[Source "ChessBase"]
[SourceQuality "1"]
[TimeControl "40/5400+30:1800+30"]

1. e4 {[%emt 0:00:04]} e6 {[%emt 0:00:18]} 2. d4 {[%emt 0:00:06]} d5 {[%emt 0:00:11]} 3. exd5 {[%emt 0:00:05]} exd5 {[%emt 0:00:09]} 4. Nf3 {[%emt 0:00:05]} Nf6 {[%emt 0:00:15]} 5. Bd3 {[%emt 0:00:24]} c5 {[%emt 0:00:44]} 6. O-O {[%emt 0:00:26]} c4 {[%emt 0:00:22]} 7. Re1+ {[%emt 0:00:07]} Be7 {[%emt 0:00:14]} 8. Bf1 {[%emt 0:00:07]} O-O {[%emt 0:00:57]} 9. b3 {[%emt 0:00:14]} cxb3 {[%emt 0:02:05]} 10. cxb3 {[%emt 0:02:12]} Nc6 {[%emt 0:01:59]} 11. Bf4 {[%emt 0:07:57]} Bg4 {[%emt 0:05:55]} 12. Be2 {[%emt 0:07:21]} Rc8 {[%emt 0:02:25]} 13. Ne5 {[%emt 0:07:55]} Bf5 {[%emt 0:05:59]} 14. Nxc6 {[%emt 0:02:46]} Rxc6 {[%emt 0:01:00]} 15. Bd3 {[%emt 0:03:25]} Bxd3 {[%emt 0:02:05]} 16. Qxd3 {[%emt 0:00:28]} Bd6 {[%emt 0:05:39]} 17. Bxd6 {[%emt 0:02:08]} Qxd6 {[%emt 0:00:22]} 18. Nd2 {[%emt 0:09:50]} Rfc8 {[%emt 0:03:21]} 19. Re2 {[%emt 0:11:32]} Rc3 {[%emt 0:07:15]} 20. Qb5 {[%emt 0:06:09]} Qc6 {[%emt 0:04:04]} 21. Qxc6 {[%emt 0:01:26]} R3xc6 {[%emt 0:00:26]} 22. f3 {[%emt 0:04:53]} Rc2 {[%emt 0:04:44]} 23. Kf2 {[%emt 0:01:16]} Rb2 {[%emt 0:02:45]} 24. Nf1 {[%emt 0:05:45]} Rcc2 {[%emt 0:02:09]} 25. Ng3 {[%emt 0:01:19]} Kf8 {[%emt 0:01:31]} 26. Ke3 {[%emt 0:04:09]} Rxe2+ {[%emt 0:04:05]} 1/2-1/2